[Event "EYCC Girls-U18 2019"]
[Site "Bratislava"]
[Date "2019.08.04"]
[Round "3.5"]
[White "Sliwicka, Alicja"]
[Black "Sibajeva, Marija"]
[Result "1-0"]
[ECO "B42"]
[WhiteElo "2261"]
[BlackElo "2031"]
[Annotator "NA"]
[PlyCount "97"]
[EventDate "2019.08.02"]
[EventType "swiss"]
[EventCountry "SVK"]
[SourceTitle "playchess.com"]
[Source "ChessBase"]
[SourceQuality "1"]
[TimeControl "40/5400+30:1800+30"]

1. e4 {[%emt 0:00:00]} c5 {[%emt 0:00:00]} 2. Nf3 {[%emt 0:00:00]} e6 {[%emt 0:00:00]} 3. d4 {[%emt 0:00:00]} cxd4 {[%emt 0:00:00]} 4. Nxd4 {[%emt 0:00:00]} a6 {[%emt 0:00:00]} 5. Bd3 {[%emt 0:00:03]} Nf6 {[%emt 0:00:01]} 6. O-O {[%emt 0:00:13]} Qc7 {[%emt 0:00:05]} 7. Kh1 {[%emt 0:00:15]} d6 {[%emt 0:00:27]} 8. f4 {[%emt 0:00:15]} Nc6 {[%emt 0:04:23]} 9. Nb3 {[%emt 0:02:48]} Be7 {[%emt 0:05:43]} 10. Nc3 {[%emt 0:00:23]} b5 {[%emt 0:01:25]} 11. Qf3 {[%emt 0:00:28]} Bb7 {[%emt 0:11:54]} 12. Bd2 {[%emt 0:00:34]} O-O {[%emt 0:01:20]} 13. Qh3 {[%emt 0:00:33]} Nb4 {[%emt 0:09:50]} 14. Nxb5 {[%emt 0:15:26]} axb5 {[%emt 0:00:45]} 15. Bxb4 {[%emt 0:00:06]} Bxe4 {[%emt 0:06:26]} 16. Nd4 {[%emt 0:02:20]} Bc6 {[%emt 0:16:49]} 17. Bc3 {[%emt 0:05:16]} g6 {[%emt 0:12:08]} 18. Nxb5 {[%emt 0:07:14]} Bxb5 {[%emt 0:02:29]} 19. Bxb5 {[%emt 0:00:12]} Ne4 {[%emt 0:01:23]} 20. Bd4 {[%emt 0:01:49]} Qxc2 {[%emt 0:05:11]} 21. Rac1 {[%emt 0:15:19]} Qd2 {[%emt 0:00:32]} 22. Rcd1 {[%emt 0:02:12]} Qc2 {[%emt 0:01:31]} 23. Qe3 {[%emt 0:04:43]} d5 {[%emt 0:04:49]} 24. Bd3 {[%emt 0:09:22]} Qc6 {[%emt 0:00:41]} 25. Rc1 {[%emt 0:02:32]} Qb7 {[%emt 0:00:14]} 26. Bxe4 {[%emt 0:03:48]} dxe4 {[%emt 0:00:08]} 27. a3 {[%emt 0:04:33]} f5 {[%emt 0:00:17]} 28. b4 {[%emt 0:03:38]} Bf6 {[%emt 0:01:10]} 29. Bxf6 {[%emt 0:01:13]} Rxf6 {[%emt 0:00:01]} 30. Rc3 {[%emt 0:03:55]} Rf7 {[%emt 0:01:25]} 31. Rfc1 {[%emt 0:00:20]} Rd7 {[%emt 0:00:57]} 32. h3 {[%emt 0:01:20]} Kf7 {[%emt 0:04:06]} 33. Qc5 {[%emt 0:00:49]} Qd5 {[%emt 0:00:42]} 34. Qe3 {[%emt 0:02:47]} Raa7 {[%emt 0:04:50]} 35. Rc8 {[%emt 0:01:04]} Qd4 {[%emt 0:01:05]} 36. Qxd4 {[%emt 0:02:22]} Rxd4 {[%emt 0:00:04]} 37. b5 {[%emt 0:00:37]} e3 {[%emt 0:03:10]} 38. b6 {[%emt 0:00:55]} Rb7 {[%emt 0:00:15]} 39. R8c7+ {[%emt 0:01:06]} Rd7 {[%emt 0:00:23]} 40. Rxd7+ {[%emt 0:00:00]} Rxd7 {[%emt 0:00:00]} 41. Kg1 {[%emt 0:04:35]} Rd2 {[%emt 0:12:25]} 42. b7 {[%emt 0:03:04]} e2 {[%emt 0:00:55]} 43. Kf2 {[%emt 0:00:51]} Rb2 {[%emt 0:00:17]} 44. Rc7+ {[%emt 0:00:25]} Kf6 {[%emt 0:00:06]} 45. a4 {[%emt 0:01:06]} e5 {[%emt 0:01:45]} 46. a5 {[%emt 0:00:58]} e4 {[%emt 0:00:48]} 47. Rc6+ {[%emt 0:00:53]} Ke7 {[%emt 0:00:15]} 48. Rb6 {[%emt 0:00:07]} e3+ {[%emt 0:00:10]} 49. Ke1 {[%emt 0:00:12]} 1-0

[Event "EYCC Girls-U18 2019"]
[Site "Bratislava"]
[Date "2019.08.04"]
[Round "3.6"]
[White "Schneider, Jana"]
[Black "Olde, Grete"]
[Result "1-0"]
[ECO "C54"]
[WhiteElo "2216"]
[BlackElo "1955"]
[Annotator "NA"]
[PlyCount "67"]
[EventDate "2019.08.02"]
[EventType "swiss"]
[EventCountry "SVK"]
[SourceTitle "playchess.com"]
[Source "ChessBase"]
[SourceQuality "1"]
[TimeControl "40/5400+30:1800+30"]

1. e4 {[%emt 0:00:00]} e5 {[%emt 0:00:00]} 2. Nf3 {[%emt 0:00:00]} Nc6 {[%emt 0:00:00]} 3. Bc4 {[%emt 0:00:00]} Bc5 {[%emt 0:00:00]} 4. c3 {[%emt 0:00:00]} Nf6 {[%emt 0:00:00]} 5. d3 {[%emt 0:00:01]} d6 {[%emt 0:00:11]} 6. Bb3 {[%emt 0:00:08]} a6 {[%emt 0:00:56]} 7. Nbd2 {[%emt 0:00:10]} O-O {[%emt 0:00:27]} 8. h3 {[%emt 0:00:10]} h6 {[%emt 0:02:07]} 9. Nf1 {[%emt 0:00:13]} Ne7 {[%emt 0:02:16]} 10. Ng3 {[%emt 0:06:45]} Ng6 {[%emt 0:02:55]} 11. O-O {[%emt 0:00:59]} Be6 {[%emt 0:05:03]} 12. d4 {[%emt 0:01:20]} Bxb3 {[%emt 0:02:45]} 13. Qxb3 {[%emt 0:00:42]} Bb6 {[%emt 0:00:37]} 14. Re1 {[%emt 0:05:29]} Re8 {[%emt 0:06:17]} 15. Bd2 {[%emt 0:05:19]} c6 {[%emt 0:08:17]} 16. Rad1 {[%emt 0:09:21]} Qc7 {[%emt 0:03:33]} 17. Qc2 {[%emt 0:04:57]} d5 {[%emt 0:07:33]} 18. exd5 {[%emt 0:06:11]} exd4 {[%emt 0:02:28]} 19. Nf5 {[%emt 0:06:30]} Nxd5 {[%emt 0:03:17]} 20. c4 {[%emt 0:01:41]} d3 {[%emt 0:04:36]} 21. Qxd3 {[%emt 0:02:07]} Ndf4 {[%emt 0:00:39]} 22. Qc3 {[%emt 0:00:54]} f6 {[%emt 0:04:02]} 23. c5 {[%emt 0:01:25]} Ba7 {[%emt 0:04:55]} 24. Qc4+ {[%emt 0:09:00]} Nd5 {[%emt 0:03:51]} 25. b4 {[%emt 0:11:31]} b6 {[%emt 0:05:27]} 26. Qg4 {[%emt 0:03:13]} Kh7 {[%emt 0:07:05]} 27. Rxe8 {[%emt 0:00:20]} Rxe8 {[%emt 0:00:05]} 28. Qh5 {[%emt 0:00:19]} Ndf4 {[%emt 0:06:05]} 29. Bxf4 {[%emt 0:00:25]} Qxf4 {[%emt 0:00:12]} 30. g3 {[%emt 0:08:49]} Qc7 {[%emt 0:02:47]} 31. N3h4 {[%emt 0:00:35]} Nxh4 {[%emt 0:02:33]} 32. Qxe8 {[%emt 0:00:12]} Nxf5 {[%emt 0:04:09]} 33. Rd7 {[%emt 0:00:07]} Qb8 {[%emt 0:00:55]} 34. Qe4 {[%emt 0:00:16]} 1-0

[Event "EYCC Girls-U18 2019"]
[Site "Bratislava"]
[Date "2019.08.04"]
[Round "3.7"]
[White "Kucharska, Honorata"]
[Black "Goltseva, Ekaterina"]
[Result "1/2-1/2"]
[ECO "A06"]
[WhiteElo "2054"]
[BlackElo "2304"]
[Annotator "NA"]
[PlyCount "135"]
[EventDate "2019.08.02"]
[EventType "swiss"]
[EventCountry "SVK"]
[SourceTitle "playchess.com"]
[Source "ChessBase"]
[SourceQuality "1"]
[TimeControl "40/5400+30:1800+30"]

1. Nf3 {[%emt 0:00:00]} d5 {[%emt 0:01:57]} 2. e3 {[%emt 0:00:00]} Nf6 {[%emt 0:00:59]} 3. c4 {[%emt 0:00:24]} e6 {[%emt 0:03:22]} 4. b3 {[%emt 0:01:31]} c5 {[%emt 0:00:50]} 5. Bb2 {[%emt 0:00:32]} Nc6 {[%emt 0:01:10]} 6. cxd5 {[%emt 0:01:53]} exd5 {[%emt 0:00:12]} 7. Be2 {[%emt 0:00:26]} Bd6 {[%emt 0:08:08]} 8. O-O {[%emt 0:02:22]} O-O {[%emt 0:01:17]} 9. d4 {[%emt 0:00:50]} cxd4 {[%emt 0:14:50]} 10. Nxd4 {[%emt 0:03:26]} a6 {[%emt 0:01:49]} 11. Nc3 {[%emt 0:04:09]} Bc7 {[%emt 0:02:23]} 12. Ba3 {[%emt 0:07:49]} Re8 {[%emt 0:02:27]} 13. Nxc6 {[%emt 0:03:53]} bxc6 {[%emt 0:00:14]} 14. Rc1 {[%emt 0:00:26]} Bf5 {[%emt 0:10:07]} 15. Bf3 {[%emt 0:03:35]} Rc8 {[%emt 0:07:03]} 16. Bc5 {[%emt 0:07:01]} Nd7 {[%emt 0:01:44]} 17. Na4 {[%emt 0:03:31]} Ne5 {[%emt 0:05:37]} 18. Be2 {[%emt 0:04:29]} Qh4 {[%emt 0:06:20]} 19. f4 {[%emt 0:02:05]} Ng4 {[%emt 0:00:58]} 20. Bxg4 {[%emt 0:00:40]} Bxg4 {[%emt 0:00:05]} 21. Qe1 {[%emt 0:03:40]} Qh5 {[%emt 0:01:40]} 22. Qf2 {[%emt 0:09:37]} Re6 {[%emt 0:03:39]} 23. g3 {[%emt 0:02:51]} Bd8 {[%emt 0:06:00]} 24. Bd4 {[%emt 0:04:58]} Bf6 {[%emt 0:01:02]} 25. Nc5 {[%emt 0:02:27]} Re7 {[%emt 0:00:26]} 26. Bxf6 {[%emt 0:05:51]} gxf6 {[%emt 0:00:04]} 27. Rfe1 {[%emt 0:00:57]} Rce8 {[%emt 0:03:02]} 28. b4 {[%emt 0:05:10]} d4 {[%emt 0:10:51]} 29. e4 {[%emt 0:04:08]} d3 {[%emt 0:00:11]} 30. Qd4 {[%emt 0:02:00]} Be2 {[%emt 0:00:23]} 31. Nd7 {[%emt 0:01:07]} Rxd7 {[%emt 0:05:31]} 32. Qxd7 {[%emt 0:00:05]} Rxe4 {[%emt 0:00:04]} 33. Rxc6 {[%emt 0:00:41]} Kg7 {[%emt 0:00:55]} 34. Qd8 {[%emt 0:03:44]} Rxf4 {[%emt 0:00:49]} 35. Rc8 {[%emt 0:01:09]} Rg4 {[%emt 0:00:36]} 36. Qh8+ {[%emt 0:01:22]} Kg6 {[%emt 0:00:27]} 37. Rg8+ {[%emt 0:01:18]} Kf5 {[%emt 0:00:05]} 38. Rxg4 {[%emt 0:00:08]} Kxg4 {[%emt 0:01:05]} 39. Qxf6 {[%emt 0:00:08]} Qd5 {[%emt 0:00:25]} 40. Qh4+ {[%emt 0:00:00]} Kf5 {[%emt 0:00:00]} 41. Qxh7+ {[%emt 0:09:04]} Ke6 {[%emt 0:02:26]} 42. Qh6+ {[%emt 0:04:09]} Kd7 {[%emt 0:00:33]} 43. Qe3 {[%emt 0:02:36]} d2 {[%emt 0:12:35]} 44. Qxe2 {[%emt 0:00:30]} Qd4+ {[%emt 0:01:49]} 45. Kf1 {[%emt 0:01:30]} Qf6+ {[%emt 0:00:52]} 46. Qf2 {[%emt 0:05:25]} dxe1=Q+ {[%emt 0:00:12]} 47. Kxe1 {[%emt 0:00:02]} Qa1+ {[%emt 0:00:09]} 48. Ke2 {[%emt 0:00:09]} Qxa2+ {[%emt 0:00:17]} 49. Kf1 {[%emt 0:00:11]} Qc4+ {[%emt 0:02:38]} 50. Kg1 {[%emt 0:02:24]} Qc1+ {[%emt 0:00:34]} 51. Kg2 {[%emt 0:01:05]} Qc6+ {[%emt 0:00:15]} 52. Qf3 {[%emt 0:02:41]} Qc2+ {[%emt 0:00:19]} 53. Kg1 {[%emt 0:00:59]} Qc1+ {[%emt 0:00:36]} 54. Kf2 {[%emt 0:00:28]} Qd2+ {[%emt 0:01:51]} 55. Qe2 {[%emt 0:00:15]} Qxb4 {[%emt 0:04:37]} 56. Qxa6 {[%emt 0:01:00]} Qc5+ {[%emt 0:02:42]} 57. Kf1 {[%emt 0:02:22]} Qf5+ {[%emt 0:02:58]} 58. Kg2 {[%emt 0:03:12]} Qd5+ {[%emt 0:01:15]} 59. Kg1 {[%emt 0:01:57]} Qd4+ {[%emt 0:00:24]} 60. Kf1 {[%emt 0:00:42]} Qd1+ {[%emt 0:00:10]} 61. Kf2 {[%emt 0:00:12]} Qd4+ {[%emt 0:00:23]} 62. Kf3 {[%emt 0:00:26]} Qd5+ {[%emt 0:00:33]} 63. Kg4 {[%emt 0:02:31]} Qe4+ {[%emt 0:01:35]} 64. Kh5 {[%emt 0:02:07]} Qe5+ {[%emt 0:00:25]} 65. Kg4 {[%emt 0:00:40]} Qe4+ {[%emt 0:00:13]} 66. Kh3 {[%emt 0:01:02]} Qh7+ {[%emt 0:00:10]} 67. Kg2 {[%emt 0:01:15]} Qe4+ {[%emt 0:00:13]} 68. Kh3 {[%emt 0:00:40]} 1/2-1/2

[Event "EYCC Girls-U18 2019"]
[Site "Bratislava"]
[Date "2019.08.04"]
[Round "3.8"]
[White "Koubova, Anna Marie"]
[Black "Nazarova, Anastasia"]
[Result "0-1"]
[ECO "E62"]
[WhiteElo "2094"]
[BlackElo "2149"]
[Annotator "NA"]
[PlyCount "56"]
[EventDate "2019.08.02"]
[EventType "swiss"]
[EventCountry "SVK"]
[SourceTitle "playchess.com"]
[Source "ChessBase"]
[SourceQuality "1"]
[TimeControl "40/5400+30:1800+30"]

1. d4 {[%emt 0:00:00]} Nf6 {[%emt 0:00:00]} 2. c4 {[%emt 0:00:00]} g6 {[%emt 0:00:00]} 3. g3 {[%emt 0:00:00]} Bg7 {[%emt 0:00:00]} 4. Bg2 {[%emt 0:00:02]} O-O {[%emt 0:00:00]} 5. Nc3 {[%emt 0:00:11]} d6 {[%emt 0:00:00]} 6. Nf3 {[%emt 0:00:12]} c6 {[%emt 0:00:00]} 7. O-O {[%emt 0:00:15]} Bf5 {[%emt 0:00:00]} 8. Re1 {[%emt 0:02:23]} Ne4 {[%emt 0:00:02]} 9. Nh4 {[%emt 0:03:23]} Nxc3 {[%emt 0:00:04]} 10. bxc3 {[%emt 0:00:08]} Be6 {[%emt 0:00:05]} 11. Qd3 {[%emt 0:06:49]} Qa5 {[%emt 0:02:01]} 12. Nf3 {[%emt 0:05:02]} Qa4 {[%emt 0:02:51]} 13. Nd2 {[%emt 0:25:31]} Nd7 {[%emt 0:02:25]} 14. Rb1 {[%emt 0:01:26]} Rab8 {[%emt 0:02:25]} 15. Rb4 {[%emt 0:02:54]} Qa6 {[%emt 0:07:24]} 16. e4 {[%emt 0:04:39]} Rfc8 {[%emt 0:10:33]} 17. Rb2 {[%emt 0:04:18]} Nb6 {[%emt 0:08:35]} 18. Bf1 {[%emt 0:01:08]} Na4 {[%emt 0:07:41]} 19. Rb3 {[%emt 0:06:21]} Qa5 {[%emt 0:00:52]} 20. Ba3 {[%emt 0:03:13]} b5 {[%emt 0:08:11]} 21. Bb4 {[%emt 0:08:21]} Qc7 {[%emt 0:01:54]} 22. d5 {[%emt 0:03:07]} cxd5 {[%emt 0:01:41]} 23. exd5 {[%emt 0:02:31]} Bf5 {[%emt 0:00:49]} 24. Qe3 {[%emt 0:02:28]} a5 {[%emt 0:06:51]} 25. Ba3 {[%emt 0:00:16]} Nxc3 {[%emt 0:01:06]} 26. cxb5 {[%emt 0:08:13]} a4 {[%emt 0:07:19]} 27. Rb2 {[%emt 0:02:23]} Nxd5 {[%emt 0:00:28]} 28. Qf3 {[%emt 0:00:38]} Qc3 {[%emt 0:13:24]} 0-1

[Event "EYCC Girls-U18 2019"]
[Site "Bratislava"]
[Date "2019.08.04"]
[Round "3.9"]
[White "Mocanu, Valeria"]
[Black "Radeva, Viktoria"]
[Result "0-1"]
[ECO "B40"]
[WhiteElo "1769"]
[BlackElo "2247"]
[Annotator "NA"]
[PlyCount "92"]
[EventDate "2019.08.02"]
[EventType "swiss"]
[EventCountry "SVK"]
[SourceTitle "playchess.com"]
[Source "ChessBase"]
[SourceQuality "1"]
[TimeControl "40/5400+30:1800+30"]

1. e4 {[%emt 0:00:00]} c5 {[%emt 0:00:00]} 2. Nf3 {[%emt 0:00:00]} e6 {[%emt 0:00:00]} 3. d4 {[%emt 0:00:00]} cxd4 {[%emt 0:00:00]} 4. Nxd4 {[%emt 0:00:00]} Nf6 {[%emt 0:00:00]} 5. Bd3 {[%emt 0:00:06]} Nc6 {[%emt 0:00:14]} 6. Nxc6 {[%emt 0:00:54]} bxc6 {[%emt 0:00:07]} 7. O-O {[%emt 0:00:17]} d5 {[%emt 0:00:17]} 8. Nd2 {[%emt 0:00:50]} Be7 {[%emt 0:00:36]} 9. b3 {[%emt 0:07:05]} O-O {[%emt 0:01:02]} 10. Bb2 {[%emt 0:02:08]} Bb7 {[%emt 0:04:39]} 11. Qe2 {[%emt 0:04:02]} a5 {[%emt 0:06:38]} 12. a4 {[%emt 0:04:10]} Qb6 {[%emt 0:08:11]} 13. Kh1 {[%emt 0:05:10]} Ba6 {[%emt 0:10:00]} 14. Bxa6 {[%emt 0:04:27]} Qxa6 {[%emt 0:03:32]} 15. Qf3 {[%emt 0:05:29]} Rfd8 {[%emt 0:11:59]} 16. e5 {[%emt 0:01:23]} Nd7 {[%emt 0:02:00]} 17. Qg4 {[%emt 0:00:35]} Bb4 {[%emt 0:03:00]} 18. Rad1 {[%emt 0:06:06]} Bxd2 {[%emt 0:01:51]} 19. f4 {[%emt 0:01:21]} Nf8 {[%emt 0:09:06]} 20. f5 {[%emt 0:01:03]} Bh6 {[%emt 0:06:29]} 21. f6 {[%emt 0:03:54]} Ng6 {[%emt 0:12:33]} 22. h4 {[%emt 0:24:17]} d4 {[%emt 0:02:46]} 23. Bc1 {[%emt 0:09:21]} Bxc1 {[%emt 0:09:05]} 24. Rxc1 {[%emt 0:00:07]} h5 {[%emt 0:00:04]} 25. Qxh5 {[%emt 0:01:49]} d3 {[%emt 0:00:12]} 26. c4 {[%emt 0:10:00]} Rd4 {[%emt 0:00:44]} 27. g3 {[%emt 0:00:17]} c5 {[%emt 0:02:37]} 28. fxg7 {[%emt 0:01:58]} Qb7+ {[%emt 0:00:13]} 29. Kh2 {[%emt 0:00:47]} Re4 {[%emt 0:02:24]} 30. Rf2 {[%emt 0:02:00]} Rxe5 {[%emt 0:00:33]} 31. Qd1 {[%emt 0:00:59]} Re3 {[%emt 0:01:57]} 32. Qd2 {[%emt 0:02:20]} Qe4 {[%emt 0:00:17]} 33. Rcf1 {[%emt 0:01:16]} Ne5 {[%emt 0:00:53]} 34. Kh3 {[%emt 0:01:08]} Qg4+ {[%emt 0:00:39]} 35. Kh2 {[%emt 0:00:14]} Qxg3+ {[%emt 0:00:43]} 36. Kh1 {[%emt 0:00:05]} Qh3+ {[%emt 0:00:17]} 37. Kg1 {[%emt 0:00:16]} Rg3+ {[%emt 0:00:54]} 38. Rg2 {[%emt 0:00:05]} Rxg2+ {[%emt 0:00:06]} 39. Qxg2 {[%emt 0:00:05]} Qxg2+ {[%emt 0:00:02]} 40. Kxg2 {[%emt 0:00:00]} Kxg7 {[%emt 0:00:00]} 41. Re1 {[%emt 0:00:57]} f6 {[%emt 0:01:13]} 42. Kf2 {[%emt 0:00:13]} Rb8 {[%emt 0:00:09]} 43. Rb1 {[%emt 0:00:16]} Kf7 {[%emt 0:01:12]} 44. Ke3 {[%emt 0:00:22]} Rg8 {[%emt 0:00:09]} 45. Rb2 {[%emt 0:01:39]} Rg3+ {[%emt 0:00:09]} 46. Ke4 {[%emt 0:00:11]} Rg4+ {[%emt 0:00:13] Kd4} 0-1

[Event "EYCC Girls-U18 2019"]
[Site "Bratislava"]
[Date "2019.08.04"]
[Round "3.10"]
[White "Urh, Zala"]
[Black "Kochukova, Anna"]
[Result "0-1"]
[ECO "E32"]
[WhiteElo "2072"]
[BlackElo "2148"]
[Annotator "NA"]
[PlyCount "84"]
[EventDate "2019.08.02"]
[EventType "swiss"]
[EventCountry "SVK"]
[SourceTitle "playchess.com"]
[Source "ChessBase"]
[SourceQuality "1"]
[TimeControl "40/5400+30:1800+30"]

1. d4 {[%emt 0:00:00]} Nf6 {[%emt 0:00:00]} 2. c4 {[%emt 0:00:00]} e6 {[%emt 0:00:00]} 3. Nc3 {[%emt 0:00:03]} Bb4 {[%emt 0:00:02]} 4. Qc2 {[%emt 0:00:28]} O-O {[%emt 0:00:32]} 5. a3 {[%emt 0:00:22]} Bxc3+ {[%emt 0:00:13]} 6. Qxc3 {[%emt 0:00:05]} b6 {[%emt 0:00:41]} 7. Bg5 {[%emt 0:01:22]} Bb7 {[%emt 0:00:20]} 8. e3 {[%emt 0:01:29]} d6 {[%emt 0:00:34]} 9. Ne2 {[%emt 0:01:13]} Nbd7 {[%emt 0:00:20]} 10. Qc2 {[%emt 0:01:28]} c5 {[%emt 0:00:40]} 11. Rd1 {[%emt 0:00:21]} Qe7 {[%emt 0:00:06]} 12. Nc3 {[%emt 0:01:42]} h6 {[%emt 0:03:18]} 13. Bh4 {[%emt 0:00:09]} cxd4 {[%emt 0:00:11]} 14. Rxd4 {[%emt 0:00:16]} Ne5 {[%emt 0:03:17]} 15. f3 {[%emt 0:04:55]} Rac8 {[%emt 0:03:21]} 16. Be2 {[%emt 0:03:32]} Ng6 {[%emt 0:00:29]} 17. Bf2 {[%emt 0:07:30]} d5 {[%emt 0:01:24]} 18. O-O {[%emt 0:06:27]} e5 {[%emt 0:03:28]} 19. Rd2 {[%emt 0:00:26]} dxc4 {[%emt 0:10:52]} 20. Nb5 {[%emt 0:03:02]} Ba6 {[%emt 0:15:40]} 21. Nd6 {[%emt 0:08:29]} Rc6 {[%emt 0:02:01]} 22. Rfd1 {[%emt 0:00:59]} Qc7 {[%emt 0:07:40]} 23. Ne4 {[%emt 0:08:25]} Nxe4 {[%emt 0:04:53]} 24. Qxe4 {[%emt 0:01:05]} Bc8 {[%emt 0:00:51]} 25. g4 {[%emt 0:05:26]} Be6 {[%emt 0:12:40]} 26. Bg3 {[%emt 0:02:49]} c3 {[%emt 0:04:14]} 27. bxc3 {[%emt 0:00:32]} Rxc3 {[%emt 0:00:10]} 28. f4 {[%emt 0:04:04]} f5 {[%emt 0:05:52]} 29. gxf5 {[%emt 0:01:16]} Bxf5 {[%emt 0:00:17]} 30. Qd5+ {[%emt 0:02:05]} Qf7 {[%emt 0:02:03]} 31. Qd6 {[%emt 0:07:59]} e4 {[%emt 0:04:46]} 32. Rd4 {[%emt 0:01:50]} Rfc8 {[%emt 0:01:21]} 33. Bf2 {[%emt 0:01:21]} Kh7 {[%emt 0:03:31]} 34. a4 {[%emt 0:02:19]} Rc2 {[%emt 0:01:45]} 35. Bb5 {[%emt 0:04:29]} Bg4 {[%emt 0:03:45]} 36. Ra1 {[%emt 0:06:56]} Rc1+ {[%emt 0:01:36]} 37. Rxc1 {[%emt 0:00:02]} Rxc1+ {[%emt 0:00:02]} 38. Kg2 {[%emt 0:00:01]} Bf3+ {[%emt 0:01:44]} 39. Kg3 {[%emt 0:00:06]} Ne7 {[%emt 0:03:07]} 40. Bd7 {[%emt 0:00:00]} Nf5+ {[%emt 0:00:00]} 41. Bxf5+ {[%emt 0:00:23]} Qxf5 {[%emt 0:00:55]} 42. h3 {[%emt 0:00:26]} Rh1 {[%emt 0:00:46]} 0-1

[Event "EYCC Girls-U18 2019"]
[Site "Bratislava"]
[Date "2019.08.04"]
[Round "3.11"]
[White "Ferkova, Dominika"]
[Black "Kocyigit, Buse Naz"]
[Result "1-0"]
[ECO "D86"]
[WhiteElo "2009"]
[BlackElo "2045"]
[Annotator "NA"]
[PlyCount "89"]
[EventDate "2019.08.02"]
[EventType "swiss"]
[EventCountry "SVK"]
[SourceTitle "playchess.com"]
[Source "ChessBase"]
[SourceQuality "1"]
[TimeControl "40/5400+30:1800+30"]

1. d4 {[%emt 0:00:00]} Nf6 {[%emt 0:00:00]} 2. c4 {[%emt 0:00:00]} g6 {[%emt 0:00:00]} 3. Nc3 {[%emt 0:00:00]} d5 {[%emt 0:00:00]} 4. cxd5 {[%emt 0:00:05]} Nxd5 {[%emt 0:00:00]} 5. e4 {[%emt 0:00:11]} Nxc3 {[%emt 0:00:00]} 6. bxc3 {[%emt 0:00:07]} Bg7 {[%emt 0:00:00]} 7. Bc4 {[%emt 0:00:15]} c5 {[%emt 0:00:00]} 8. Ne2 {[%emt 0:00:26]} O-O {[%emt 0:00:42]} 9. O-O {[%emt 0:00:17]} Nc6 {[%emt 0:00:08]} 10. Be3 {[%emt 0:00:10]} Qc7 {[%emt 0:00:07]} 11. Rc1 {[%emt 0:00:28]} Rd8 {[%emt 0:00:11]} 12. Bf4 {[%emt 0:01:05]} Qd7 {[%emt 0:00:06]} 13. d5 {[%emt 0:01:13]} Na5 {[%emt 0:00:31]} 14. Bd3 {[%emt 0:01:07]} b5 {[%emt 0:00:18]} 15. Rb1 {[%emt 0:12:17]} a6 {[%emt 0:00:01]} 16. Be3 {[%emt 0:13:00]} Qc7 {[%emt 0:00:59]} 17. a4 {[%emt 0:06:16]} e6 {[%emt 0:12:24]} 18. axb5 {[%emt 0:28:35]} exd5 {[%emt 0:00:23]} 19. exd5 {[%emt 0:01:39]} Rxd5 {[%emt 0:07:22]} 20. Qc2 {[%emt 0:02:49]} axb5 {[%emt 0:08:09]} 21. Be4 {[%emt 0:05:49]} Bf5 {[%emt 0:00:28]} 22. Bxf5 {[%emt 0:00:13]} Rxf5 {[%emt 0:00:14]} 23. Rxb5 {[%emt 0:01:02]} Rb8 {[%emt 0:21:18]} 24. Rxb8+ {[%emt 0:09:57]} Qxb8 {[%emt 0:00:01]} 25. Rb1 {[%emt 0:02:22]} Qc7 {[%emt 0:05:49]} 26. Qa4 {[%emt 0:01:53]} Bf8 {[%emt 0:01:53]} 27. Bf4 {[%emt 0:04:38]} Qd8 {[%emt 0:02:59]} 28. Ng3 {[%emt 0:01:06]} Rd5 {[%emt 0:02:43]} 29. h3 {[%emt 0:01:45]} Qh4 {[%emt 0:19:45]} 30. Rb8 {[%emt 0:02:30]} Re5 {[%emt 0:05:09]} 31. Ra8 {[%emt 0:03:15]} g5 {[%emt 0:00:12]} 32. Qxa5 gxf4 {[%emt 0:03:03]} 33. Qc7 {[%emt 0:00:52]} Re1+ {[%emt 0:07:46]} 34. Nf1 {[%emt 0:00:02]} Kg7 {[%emt 0:03:46]} 35. Qb8 {[%emt 0:00:25]} Be7 {[%emt 0:00:30]} 36. Qg8+ {[%emt 0:00:24]} Kf6 {[%emt 0:00:13]} 37. Qh8+ {[%emt 0:00:41]} Ke6 {[%emt 0:00:15]} 38. Ra6+ {[%emt 0:00:40]} Bd6 {[%emt 0:00:46]} 39. Qc8+ {[%emt 0:00:28]} Ke7 {[%emt 0:00:36]} 40. Qb7+ {[%emt 0:00:00]} Ke6 {[%emt 0:00:00]} 41. Qb3+ {[%emt 0:06:58]} Ke5 {[%emt 0:06:04]} 42. Qxf7 {[%emt 0:06:51]} Re2 {[%emt 0:00:18]} 43. g3 {[%emt 0:02:08]} Qg5 {[%emt 0:09:17]} 44. Qe8+ {[%emt 0:02:07]} Be7 {[%emt 0:00:33]} 45. Qd7 {[%emt 0:00:23] Kd5} 1-0